fUSD/lending_fUSD_20260622
["ID","MTS","AMOUNT","RATE_DAILY","PERIOD"]
[425994337,1782086411000,-152.0,0.00014899,2]
[425994338,1782086465000,-151.0,0.00014899,2]
[425994340,1782086517000,-150.0,0.00014899,2]
[425994342,1782086572000,-556.84875835,0.00012699,3]
[425994343,1782086588000,-556.84875835,0.0001269,3]
[425994344,1782086606000,-2818.50835038,0.00012682,3]
[425994345,1782086623000,-2818.50835038,0.00012673,3]
[425994347,1782086803000,-260.32774948,0.00012663,2]
[425994348,1782086814000,-2530.67225052,0.00012664,3]
[425994349,1782086922000,-2905.34116042,0.00012664,3]
[425994350,1782086939000,-2905.34116042,0.00012664,3]
[425994390,1782087032000,-150.0,0.00014899,2]
[425994392,1782087032000,-151.0,0.00014899,2]
[425994388,1782087032000,-3072.95281704,0.00014799,2]
[425994385,1782087032000,-700.0,0.000146,5]
[425994394,1782087032000,-150.0,0.00014899,2]
[425994393,1782087032000,-151.0,0.00014899,2]
[425994386,1782087032000,-161.41,0.00014643,2]
[425994396,1782087032000,-317.0,0.00014899,2]
[425994391,1782087032000,-151.0,0.00014899,2]
[425994389,1782087032000,-2300.0,0.000148,5]
[425994381,1782087032000,-249.34,0.00013957,2]
[425994384,1782087032000,-161.41,0.00014286,2]
[425994387,1782087032000,-1500.0,0.000147,5]
[425994398,1782087032000,-152.0,0.00014899,2]
[425994406,1782087032000,-317.0,0.000149,2]
[425994407,1782087032000,-151.0,0.000149,2]
[425994399,1782087032000,-151.0,0.00014899,2]
[425994395,1782087032000,-151.0,0.00014899,2]
[425994376,1782087032000,-300.0,0.00013929,2]
[425994378,1782087032000,-250.0,0.00013929,2]
[425994380,1782087032000,-536.95,0.00013957,2]
[425994400,1782087032000,-153.0,0.00014899,2]
[425994364,1782087032000,-9604.5695759,0.00012664,3]
[425994361,1782087032000,-182.22942464,0.00012663,2]
[425994363,1782087032000,-3568.32269673,0.00012664,3]
[425994362,1782087032000,-3485.75315601,0.00012664,3]
[425994366,1782087032000,-15761.02329898,0.00012673,3]
[425994365,1782087032000,-3097.8304241,0.00012673,3]
[425994368,1782087032000,-22181.49164962,0.00012682,3]
[425994379,1782087032000,-600.0,0.0001393,2]
[425994367,1782087032000,-3322.63792654,0.00012673,3]
[425994372,1782087032000,-600.0,0.00013929,2]
[425994369,1782087032000,-24443.15124165,0.0001269,3]
[425994382,1782087032000,-150.0,0.00014215,2]
[425994374,1782087032000,-300.0,0.00013929,2]
[425994383,1782087032000,-595.35,0.00014215,2]
[425994373,1782087032000,-600.0,0.00013929,2]
[425994375,1782087032000,-300.0,0.00013929,2]
[425994377,1782087032000,-376.63969294,0.00013929,2]
[425994370,1782087032000,-24443.15124165,0.00012699,3]
[425994397,1782087032000,-500.0,0.00014899,2]
[425994371,1782087032000,-25000.0,0.00012708,3]
[425994401,1782087032000,-1.0,0.00014899,2]
[425994429,1782087032000,-316.0,0.000149,2]
[425994431,1782087032000,-313.0,0.000149,2]
[425994432,1782087032000,-310.0,0.000149,2]
[425994434,1782087032000,-318.0,0.000149,2]
[425994436,1782087032000,-318.0,0.000149,2]
[425994433,1782087032000,-315.0,0.000149,2]
[425994446,1782087032000,-316.0,0.00014965,2]
[425994437,1782087032000,-321.0,0.000149,2]
[425994426,1782087032000,-311.0,0.000149,2]
[425994435,1782087032000,-313.0,0.000149,2]
[425994440,1782087032000,-320.0,0.000149,2]
[425994443,1782087032000,-234.0,0.000149,2]
[425994439,1782087032000,-316.0,0.000149,2]
[425994441,1782087032000,-314.0,0.000149,2]
[425994442,1782087032000,-312.0,0.000149,2]
[425994445,1782087032000,-160.0,0.00014906,2]
[425994444,1782087032000,-216.32317309,0.00014906,2]
[425994408,1782087032000,-309.0,0.000149,2]
[425994438,1782087032000,-320.0,0.000149,2]
[425994428,1782087032000,-319.0,0.000149,2]
[425994430,1782087032000,-313.0,0.000149,2]
[425994425,1782087032000,-5429.12782851,0.000149,2]
[425994404,1782087032000,-151.0,0.000149,2]
[425994405,1782087032000,-320.0,0.000149,2]
[425994403,1782087032000,-152.0,0.00014899,2]
[425994402,1782087032000,-150.0,0.00014899,2]
[425994412,1782087032000,-150.0,0.000149,2]
[425994427,1782087032000,-315.0,0.000149,2]
[425994409,1782087032000,-151.0,0.000149,2]
[425994411,1782087032000,-151.0,0.000149,2]
[425994415,1782087032000,-152.0,0.000149,2]
[425994414,1782087032000,-151.0,0.000149,2]
[425994410,1782087032000,-150.0,0.000149,2]
[425994419,1782087032000,-151.0,0.000149,2]
[425994418,1782087032000,-151.0,0.000149,2]
[425994413,1782087032000,-151.0,0.000149,2]
[425994416,1782087032000,-151.0,0.000149,2]
[425994422,1782087032000,-1021.27199657,0.000149,2]
[425994421,1782087032000,-480.73832787,0.000149,2]
[425994424,1782087032000,-3100.0,0.000149,5]
[425994423,1782087032000,-202.07726404,0.000149,2]
[425994420,1782087032000,-152.0,0.000149,2]
[425994451,1782087033000,-500.0,0.00014999,2]
[425994453,1782087033000,-500.0,0.00014999,2]
[425994454,1782087033000,-500.0,0.00014999,2]
[425994452,1782087033000,-500.0,0.00014999,2]
[425994455,1782087033000,-500.0,0.00014999,2]
[425994448,1782087033000,-477.2524228,0.00014999,2]
[425994447,1782087033000,-187.47536785,0.0001499,2]
[425994456,1782087033000,-500.0,0.00014999,2]
[425994450,1782087033000,-500.0,0.00014999,2]
[425994449,1782087033000,-500.0,0.00014999,2]
[425994465,1782087033000,-161.41,0.00015,2]
[425994467,1782087033000,-7416.30579598,0.00015,2]
[425994464,1782087033000,-666.0,0.00014999,2]
[425994462,1782087033000,-500.0,0.00014999,2]
[425994461,1782087033000,-500.0,0.00014999,2]
[425994466,1782087033000,-65268.81885599,0.00015,2]
[425994458,1782087033000,-500.0,0.00014999,2]
[425994459,1782087033000,-500.0,0.00014999,2]
[425994457,1782087033000,-500.0,0.00014999,2]
[425994460,1782087033000,-500.0,0.00014999,2]
[425994463,1782087033000,-300.0,0.00014999,2]
[425994469,1782087033000,-786.7369243,0.00015,2]
[425994468,1782087033000,-39642.6489874,0.00015,2]
[425994482,1782087038000,-2914935.19155966,0.00015,2]
[425994483,1782087038000,-356.39747628,0.00015,2]
[425994484,1782087038000,-837.57754225,0.00015,2]
[425994481,1782087038000,-1026.90788496,0.000149,2]
[425994511,1782087040000,-5429.12782848,0.00016277,2]
[425994510,1782087040000,-3072.952817,0.00016188,2]
[425994506,1782087040000,-166.66,0.00015742,2]
[425994503,1782087040000,-166.66,0.00015424,2]
[425994508,1782087040000,-1517.11,0.00016002,2]
[425994505,1782087040000,-161.41,0.00015714,2]
[425994504,1782087040000,-249.34,0.00015702,2]
[425994499,1782087040000,-310.0,0.0001511,2]
[425994498,1782087040000,-151.0,0.0001511,2]
[425994495,1782087040000,-151.0,0.0001511,2]
[425994502,1782087040000,-161.41,0.00015357,2]
[425994501,1782087040000,-7120.81,0.0001531,2]
[425994494,1782087040000,-151.0,0.0001511,2]
[425994500,1782087040000,-309.0,0.0001511,2]
[425994491,1782087040000,-153.0,0.0001511,2]
[425994493,1782087040000,-151.0,0.0001511,2]
[425994492,1782087040000,-151.0,0.0001511,2]
[425994489,1782087040000,-452.08,0.00015,2]
[425994490,1782087040000,-166.66,0.00015106,2]
[425994488,1782087040000,-246753.66250362,0.00015,2]
[425994507,1782087040000,-8021.66352065,0.00015751,2]
[425994496,1782087040000,-151.0,0.0001511,2]
[425994512,1782087040000,-200.0,0.0001634,2]
[425994497,1782087040000,-150.0,0.0001511,2]
[425994513,1782087040000,-166.66,0.00016378,2]
[425994534,1782087040000,-500.0,0.00016438,2]
[425994535,1782087040000,-500.0,0.00016438,2]
[425994538,1782087040000,-500.0,0.00016438,2]
[425994537,1782087040000,-500.0,0.00016438,2]
[425994536,1782087040000,-151.0,0.00016438,2]
[425994532,1782087040000,-500.0,0.00016438,2]
[425994526,1782087040000,-500.0,0.00016438,2]
[425994530,1782087040000,-500.0,0.00016438,2]
[425994529,1782087040000,-500.0,0.00016438,2]
[425994527,1782087040000,-500.0,0.00016438,2]
[425994528,1782087040000,-500.0,0.00016438,2]
[425994509,1782087040000,-166.66,0.0001606,2]
[425994521,1782087040000,-500.0,0.00016438,2]
[425994525,1782087040000,-500.0,0.00016438,2]
[425994515,1782087040000,-500.0,0.00016438,2]
[425994520,1782087040000,-500.0,0.00016438,2]
[425994518,1782087040000,-500.0,0.00016438,2]
[425994517,1782087040000,-259.52016598,0.00016438,2]
[425994516,1782087040000,-500.0,0.00016438,2]
[425994514,1782087040000,-193.5,0.00016438,2]
[425994522,1782087040000,-500.0,0.00016438,2]
[425994523,1782087040000,-500.0,0.00016438,2]
[425994524,1782087040000,-500.0,0.00016438,2]
[425994519,1782087040000,-500.0,0.00016438,2]
[425994577,1782087041000,-6830.71681069,0.00018,2]
[425994556,1782087041000,-1500.0,0.00017629,2]
[425994571,1782087041000,-170.71,0.00017932,2]
[425994583,1782087041000,-1413.38038125,0.00018,2]
[425994586,1782087041000,-150.0,0.00018038,2]
[425994573,1782087041000,-181.07535643,0.00018,2]
[425994575,1782087041000,-807.36671608,0.00018,2]
[425994599,1782087041000,-6830.71681069,0.000182,2]
[425994590,1782087041000,-243.0,0.00018044,2]
[425994595,1782087041000,-181.07535643,0.000182,2]
[425994592,1782087041000,-1555.5,0.00018177,2]
[425994554,1782087041000,-3072.952817,0.00017576,2]
[425994606,1782087041000,-181.07535643,0.000184,2]
[425994604,1782087041000,-1413.38038125,0.000182,2]
[425994602,1782087041000,-204.4,0.000182,2]
[425994580,1782087041000,-204.4,0.00018,2]
[425994561,1782087041000,-6830.71681069,0.000177,2]
[425994564,1782087041000,-1413.38038125,0.000177,2]
[425994559,1782087041000,-5429.12782848,0.00017655,2]
[425994540,1782087041000,-1021.27199657,0.000169,2]
[425994539,1782087041000,-166.66,0.00016696,2]
[425994541,1782087041000,-150.99,0.00016922,2]
[425994542,1782087041000,-3908.99,0.00016922,2]
[425994544,1782087041000,-1476.75,0.00016922,2]
[425994545,1782087041000,-9999.99,0.00016922,2]
[425994597,1782087041000,-807.36671608,0.000182,2]
[425994553,1782087041000,-1413.38038125,0.000175,2]
[425994546,1782087041000,-6830.71681069,0.00017,2]
[425994548,1782087041000,-6830.71681069,0.000171,2]
[425994547,1782087041000,-1413.38038125,0.00017,2]
[425994549,1782087041000,-1413.38038125,0.000171,2]
[425994552,1782087041000,-6830.71681069,0.000175,2]
[425994568,1782087041000,-1413.38038125,0.000178,2]
[425994551,1782087041000,-1413.38038125,0.000173,2]
[425994566,1782087041000,-6830.71681069,0.000178,2]
[425994550,1782087041000,-6830.71681069,0.000173,2]
[425994543,1782087041000,-9999.99,0.00016922,2]
[425994609,1782087041000,-807.36671608,0.000184,2]
[425994613,1782087041000,-204.4,0.000184,2]
[425994693,1782087041000,-157.0,0.0002,2]
[425994689,1782087041000,-482.0,0.0002,2]
[425994686,1782087041000,-273.0,0.0002,2]
[425994679,1782087041000,-500.0,0.00019999,2]
[425994696,1782087041000,-304.0,0.0002,2]
[425994682,1782087041000,-382.30659522,0.0002,2]
[425994699,1782087041000,-194.11719084,0.0002,2]
[425994675,1782087041000,-1734.62772924,0.00019821,2]
[425994702,1782087041000,-4070.9072918,0.0002,2]
[425994611,1782087041000,-6830.71681069,0.000184,2]
[425994714,1782087041000,-161.0,0.0002,2]
[425994711,1782087041000,-249.0,0.0002,2]
[425994716,1782087041000,-2000.0,0.0002,7]
[425994720,1782087041000,-382.30659522,0.000202,2]
[425994726,1782087041000,-1798.80895522,0.00020369,2]
[425994723,1782087041000,-3072.952817,0.00020354,2]
[425994705,1782087041000,-158.0,0.0002,2]
[425994658,1782087041000,-1672.7364795,0.00019273,2]
[425994709,1782087041000,-1012.93229275,0.0002,2]
[425994660,1782087041000,-170.26,0.00019436,2]
[425994656,1782087041000,-5429.12782848,0.00019032,2]
[425994615,1782087041000,-1413.38038125,0.000184,2]
[425994618,1782087041000,-500.0,0.00018409,2]
[425994620,1782087041000,-193.5,0.0001841,2]
[425994625,1782087041000,-807.36671608,0.000185,2]
[425994628,1782087041000,-1049.7841,0.000185,2]
[425994641,1782087041000,-204.4,0.000187,2]
[425994631,1782087041000,-204.4,0.000185,2]
[425994623,1782087041000,-181.07535643,0.000185,2]
[425994633,1782087041000,-6830.71681069,0.000186,2]
[425994636,1782087041000,-1413.38038125,0.000186,2]
[425994643,1782087041000,-1613.0535,0.00018725,2]
[425994648,1782087041000,-3072.952817,0.00018965,2]
[425994646,1782087041000,-1021.27199657,0.000189,2]
[425994653,1782087041000,-365.86093471,0.0001901,7]
[425994651,1782087041000,-1674.0,0.00018998,5]
[425994638,1782087041000,-807.36671608,0.000187,2]
[425994736,1782087042000,-233.536581,0.0002058,2]
[425994728,1782087042000,-193.5,0.00020381,2]
[425994732,1782087042000,-382.30659522,0.000204,2]
[425994734,1782087042000,-5429.12782848,0.0002041,2]
[425994739,1782087042000,-382.30659522,0.000206,2]
[425994772,1782087042000,-979.78334325,0.000207,2]
[425994743,1782087042000,-8791.21458195,0.000207,2]
[425994770,1782087042000,-1769.30559226,0.000207,2]
[425994776,1782087042000,-3997.94078069,0.000207,2]
[425994784,1782087042000,-2774.1424677,0.000207,2]
[425994787,1782087042000,-1129.11143,0.000207,2]
[425994741,1782087042000,-152.58,0.000206,7]
[425994954,1782087043000,-597.0049,0.000207,2]
[425994958,1782087043000,-382.30659522,0.000208,2]
[425994961,1782087043000,-500.36,0.00020879,2]
[425994962,1782087043000,-921.91061686,0.000209,2]
[425994956,1782087043000,-3034.76361799,0.000207,2]
[425995282,1782087046000,-99.36137971,0.000209,2]
[425995285,1782087046000,-532.23862029,0.00020917,2]
[425995301,1782087046000,-0.70126479,0.00020917,2]
[425995335,1782087046000,-4224.88384587,0.00021,2]
[425995326,1782087046000,-1332.42500148,0.00020917,2]
[425995329,1782087046000,-273.0,0.00021,2]
[425995331,1782087046000,-163.0,0.00021,2]
[425995330,1782087046000,-482.0,0.00021,2]
[425995357,1782087046000,-172.99479077,0.00012663,2]
[425995359,1782087046000,-8149.0576148,0.00021,2]
[425995328,1782087046000,-530.24061428,0.00021,2]
[425995332,1782087046000,-304.0,0.00021,2]
[425995333,1782087046000,-158.0,0.00021,2]
[425995343,1782087046000,-1389.4386276,0.00021,2]
[425996863,1782087191000,247.86487229,0.0002195,30]
[425996864,1782087353000,-168.06433566,0.00012552,2]
[425996865,1782087371000,-610.07274959,0.00012552,2]
[425996866,1782087407000,-979.78334325,0.00012553,2]
[425996867,1782087425000,-979.78334325,0.00012553,2]
[425996868,1782087457000,-420.04485476,0.00012553,2]
[425996871,1782087475000,-20.04485476,0.00012558,2]
[425996870,1782087475000,-250.0,0.00012556,2]
[425996869,1782087475000,-150.0,0.00012176,2]
[425996872,1782087479000,-129.95514524,0.00012558,2]
[425996873,1782087479000,-120.04485476,0.00012563,2]
[425996874,1782087864000,-150.0,0.00012186,2]
[425996875,1782087881000,-250.0,0.00012289,2]
[425996877,1782088002000,1893.886616,0.0003013,120]
[425996878,1782088017000,-190.52432191,0.00012559,2]
[425996879,1782088162000,157.5599,0.00030137,120]
[425996880,1782088229000,1169.21305,0.0003,120]
[425996905,1782088233000,-150.0,0.00014671,2]
[425996910,1782088233000,-187.01,0.00014844,2]
[425996908,1782088233000,-156.89,0.00014785,2]
[425996912,1782088233000,-348.0,0.00014886,2]
[425996909,1782088233000,-150.0,0.00014785,2]
[425996911,1782088233000,-926.13,0.00014856,2]
[425996913,1782088233000,-2000.0,0.000149,2]
[425996914,1782088233000,-153.0,0.00014914,2]
[425996927,1782088233000,-200.0,0.00016336,2]
[425996917,1782088233000,-320.0,0.00014936,2]
[425996918,1782088233000,-319.0,0.00014936,2]
[425996920,1782088233000,-166.66,0.00014986,2]
[425996922,1782088233000,-166.66,0.00015277,2]
[425996919,1782088233000,-315.0,0.00014936,2]
[425996923,1782088233000,-255.0,0.00015908,2]
[425996906,1782088233000,-166.66,0.00014695,2]
[425996915,1782088233000,-719.51,0.00014921,2]
[425996907,1782088233000,-1852.42,0.00014733,2]
[425996893,1782088233000,-600.0,0.00013813,2]
[425996903,1782088233000,-166.66,0.00014404,2]
[425996887,1782088233000,-179.52339895,0.00012557,2]
[425996889,1782088233000,-188.443363,0.00012653,2]
[425996891,1782088233000,-318.86,0.00013183,2]
[425996890,1782088233000,-160.0,0.00012663,2]
[425996892,1782088233000,-150.0,0.00013321,2]
[425996888,1782088233000,-150.0,0.00012605,2]
[425996921,1782088233000,-163.2,0.00015198,2]
[425996904,1782088233000,-179.52339893,0.00014579,2]
[425996895,1782088233000,-328.64488038,0.00013813,2]
[425996896,1782088233000,-166.66,0.00013822,2]
[425996897,1782088233000,-600.0,0.00013918,2]
[425996898,1782088233000,-300.0,0.00013918,2]
[425996899,1782088233000,-250.0,0.00013918,2]
[425996900,1782088233000,-250.0,0.00014,2]
[425996901,1782088233000,-166.66,0.00014113,2]
[425996902,1782088233000,-217.37,0.00014183,2]
[425996894,1782088233000,-250.0,0.00013813,2]
[425996929,1782088233000,-189.9,0.00016438,2]
[425996925,1782088233000,-300.0,0.00016,2]
[425996942,1782088233000,-400.0,0.000169,2]
[425996955,1782088233000,-2458.3622536,0.00017182,2]
[425996957,1782088233000,-55669.88939135,0.000172,2]
[425996956,1782088233000,-500.0,0.00017199,2]
[425996958,1782088233000,-130958.34524901,0.000172,2]
[425996963,1782088233000,-10424.36722347,0.000174,2]
[425996961,1782088233000,-400.0,0.000173,2]
[425996964,1782088233000,-400.0,0.000174,2]
[425996959,1782088233000,-7984.49355964,0.000172,2]
[425996962,1782088233000,-187.01,0.00017318,2]
[425996965,1782088233000,-1108.64367508,0.00017491,2]
[425996960,1782088233000,-10424.36722347,0.000173,2]
[425996931,1782088233000,-467.68,0.00016518,2]
[425996967,1782088233000,-49.39212328,0.00017524,2]
[425996968,1782088233000,-535.48704977,0.00017524,2]
[425996969,1782088233000,-500.0,0.00017422,2]
[425996971,1782088233000,-2024.40849882,0.00017524,2]
[425996970,1782088233000,-200.19088126,0.00017524,2]
[425996953,1782088233000,-433.0,0.00017121,2]
[425996949,1782088233000,-1500.0,0.00016943,2]
[425996966,1782088233000,-446.85632492,0.00017491,2]
[425996952,1782088233000,-400.0,0.000171,2]
[425996930,1782088233000,-558.93657188,0.000165,2]
[425996941,1782088233000,-10424.36722347,0.000169,2]
[425996934,1782088233000,-179.52339893,0.000166,2]
[425996933,1782088233000,-3948.4733,0.000166,2]
[425996932,1782088233000,-190.27,0.0001654,2]
[425996935,1782088233000,-500.0,0.000166,2]
[425996937,1782088233000,-400.0,0.000167,2]
[425996936,1782088233000,-10424.36722347,0.000167,2]
[425996939,1782088233000,-500.0,0.00016874,2]
[425996945,1782088233000,-9999.99,0.00016922,2]
[425996944,1782088233000,-5228.75,0.00016922,2]
[425996946,1782088233000,-870.41,0.00016922,2]
[425996947,1782088233000,-15787.2,0.00016922,2]
[425996948,1782088233000,-171.0,0.00016922,2]
[425996950,1782088233000,-279.58414468,0.000171,2]
[425996951,1782088233000,-10144.78307879,0.000171,2]
[425996943,1782088233000,-948.11,0.00016922,2]
[425996954,1782088233000,-500.0,0.00017148,2]
[425997011,1782088238000,-10424.36722347,0.000183,2]
[425997007,1782088238000,-10424.36722347,0.000181,2]
[425997010,1782088238000,-163.52,0.000182,2]
[425997009,1782088238000,-741.68212158,0.000182,2]
[425997008,1782088238000,-196.16496946,0.000182,2]
[425997016,1782088238000,-189.9,0.0001841,2]
[425997014,1782088238000,-741.68212158,0.000184,2]
[425997024,1782088238000,-6274.043,0.000186,2]
[425997025,1782088238000,-887.4983478,0.00018623,2]
[425997013,1782088238000,-196.16496946,0.000184,2]
[425997015,1782088238000,-163.52,0.000184,2]
[425997012,1782088238000,-2458.3622536,0.00018367,2]
[425997006,1782088238000,-265.0,0.00018045,2]
[425997002,1782088238000,-204.4,0.00018,2]
[425996998,1782088238000,-10424.36722347,0.00018,2]
[425997004,1782088238000,-166.0,0.00018036,2]
[425997001,1782088238000,-163.52,0.00018,2]
[425997003,1782088238000,-350.0,0.00018,2]
[425996994,1782088238000,-10424.36722347,0.000176,2]
[425996997,1782088238000,-10424.36722347,0.000178,2]
[425997000,1782088238000,-741.68212158,0.00018,2]
[425996999,1782088238000,-196.16496946,0.00018,2]
[425996996,1782088238000,-500.0,0.00017696,2]
[425996995,1782088238000,-155.08063583,0.00017605,2]
[425996993,1782088238000,-1533.82370969,0.00017524,2]
[425996991,1782088238000,-155.65,0.00014788,2]
[425996992,1782088238000,-500.0,0.00017199,2]
[425997020,1782088238000,-196.16496946,0.000185,2]
[425997005,1782088238000,-1613.0535,0.00018039,2]
[425997017,1782088238000,-736.0,0.00018422,2]
[425997048,1782088238000,-312.0,0.0002,2]
[425997019,1782088238000,-10424.36722347,0.000185,2]
[425997022,1782088238000,-163.52,0.000185,2]
[425997050,1782088238000,-506.0,0.0002,2]
[425997045,1782088238000,-4343.30226278,0.0001985,2]
[425997042,1782088238000,-1798.80895522,0.00019683,2]
[425997046,1782088238000,-573.45989284,0.0002,2]
[425997044,1782088238000,-187.01,0.00019792,2]
[425997043,1782088238000,-247.8648723,0.00019716,10]
[425997041,1782088238000,-233.536581,0.000196,2]
[425997038,1782088238000,-169.97,0.00019146,2]
[425997040,1782088238000,-2458.3622536,0.00019552,2]
[425997039,1782088238000,-10424.36722347,0.000193,2]
[425997047,1782088238000,-157.0,0.0002,2]
[425997049,1782088238000,-165.0,0.0002,2]
[425997033,1782088238000,-500.0,0.00018899,2]
[425997051,1782088238000,-176.0,0.0002,2]
[425997037,1782088238000,-1734.62772924,0.00019135,2]
[425997018,1782088238000,-156.89,0.00018481,2]
[425997021,1782088238000,-741.68212158,0.000185,2]
[425997023,1782088238000,-1672.7364795,0.00018587,2]
[425997028,1782088238000,-741.68212158,0.000187,2]
[425997031,1782088238000,-500.0,0.00018793,2]
[425997032,1782088238000,-43599.451027,0.00018794,2]
[425997030,1782088238000,-17408.15,0.0001872,2]
[425997026,1782088238000,-4343.30226278,0.00018687,2]
[425997027,1782088238000,-10424.36722347,0.000187,2]
[425997036,1782088238000,-10424.36722347,0.000191,2]
[425997029,1782088238000,-163.52,0.000187,2]
[425997034,1782088238000,-10424.36722347,0.000189,2]
[425997035,1782088238000,-13160.7476025,0.00019041,2]
[425997125,1782088239000,-151.0,0.00020779,2]
[425997134,1782088239000,-151.0,0.00020779,2]
[425997119,1782088239000,-151.0,0.00020779,2]
[425997114,1782088239000,-151.0,0.00020779,2]
[425997108,1782088239000,-151.0,0.00020779,2]
[425997121,1782088239000,-151.0,0.00020779,2]
[425997116,1782088239000,-151.0,0.00020779,2]
[425997117,1782088239000,-151.0,0.00020779,2]
[425997112,1782088239000,-151.0,0.00020779,2]
[425997110,1782088239000,-151.0,0.00020779,2]
[425997123,1782088239000,-151.0,0.00020779,2]
[425997132,1782088239000,-151.0,0.00020779,2]
[425997148,1782088239000,-556.75264499,0.00021,2]
[425997128,1782088239000,-151.0,0.00020779,2]
[425997130,1782088239000,-151.0,0.00020779,2]
[425997140,1782088239000,-573.45989284,0.000208,2]
[425997142,1782088239000,-4856.36274125,0.00021,2]
[425997144,1782088239000,-1215.0366837,0.00021,2]
[425997146,1782088239000,-200.53505859,0.00021,2]
[425997158,1782088239000,-176.0,0.00021,2]
[425997152,1782088239000,-312.0,0.00021,2]
[425997156,1782088239000,-506.0,0.00021,2]
[425997150,1782088239000,-152.58,0.00021,7]
[425997154,1782088239000,-165.0,0.00021,2]
[425997095,1782088239000,-151.0,0.00020779,2]
[425997136,1782088239000,-151.0,0.00020779,2]
[425997097,1782088239000,-151.0,0.00020779,2]
[425997071,1782088239000,-200.0,0.00020779,2]
[425997091,1782088239000,-151.0,0.00020779,2]
[425997160,1782088239000,-161.0,0.00021,2]
[425997060,1782088239000,-189.9,0.00020381,2]
[425997062,1782088239000,-573.45989284,0.000204,2]
[425997052,1782088239000,-1040.1045652,0.0002,2]
[425997064,1782088239000,-573.45989284,0.000206,2]
[425997053,1782088239000,-161.0,0.0002,2]
[425997055,1782088239000,-571.0,0.0002,2]
[425997056,1782088239000,-573.45989284,0.000202,2]
[425997058,1782088239000,-1804.70706313,0.00020231,2]
[425997054,1782088239000,-350.0,0.0002,2]
[425997066,1782088239000,-2458.3622536,0.00020736,2]
[425997076,1782088239000,-151.0,0.00020779,2]
[425997101,1782088239000,-151.0,0.00020779,2]
[425997067,1782088239000,-151.0,0.00020779,2]
[425997069,1782088239000,-151.0,0.00020779,2]
[425997078,1782088239000,-151.0,0.00020779,2]
[425997080,1782088239000,-151.0,0.00020779,2]
[425997073,1782088239000,-151.0,0.00020779,2]
[425997088,1782088239000,-151.0,0.00020779,2]
[425997084,1782088239000,-151.0,0.00020779,2]
[425997086,1782088239000,-151.0,0.00020779,2]
[425997090,1782088239000,-500.0,0.00020779,2]
[425997099,1782088239000,-151.0,0.00020779,2]
[425997093,1782088239000,-151.0,0.00020779,2]
[425997105,1782088239000,-151.0,0.00020779,2]
[425997103,1782088239000,-151.0,0.00020779,2]
[425997082,1782088239000,-151.0,0.00020779,2]
[425997164,1782088239000,-571.0,0.00021,2]
[425997137,1782088239000,-926.13,0.00020799,2]
[425997166,1782088239000,-4343.30226278,0.00021014,2]
[425997233,1782088239000,-537.68450001,0.00022196,2]
[425997218,1782088239000,-350.0,0.00022,2]
[425997231,1782088239000,-156.89,0.00022177,2]
[425997241,1782088239000,-201.93286101,0.00022196,2]
[425997235,1782088239000,-151.0,0.00022196,2]